fUSD/lending_fUSD_20250502
["ID","MTS","AMOUNT","RATE_DAILY","PERIOD"]
[359637786,1746204639539,-516.46669147,0.00019758,2]
[359637787,1746204639553,-6611.7499408,0.00019759,3]
[359637788,1746204639617,-709.08266212,0.00019759,3]
[359637789,1746204640007,-450.0,0.00019758,2]
[359637790,1746204640017,-1650.05512954,0.00019759,3]
[359637791,1746204640028,-4316.23010528,0.00019759,3]
[359637792,1746204640040,-606.05829084,0.00019759,3]
[359637793,1746204640051,-2451.67521649,0.00019759,3]
[359637794,1746204640060,-450.0,0.00019759,2]
[359637795,1746204640070,-450.0,0.00019759,2]
[359637796,1746204640080,-450.0,0.00019759,2]
[359637797,1746204640090,-450.0,0.00019759,2]
[359637798,1746204640099,-450.0,0.00019759,2]
[359637799,1746204640109,-450.0,0.00019759,2]
[359637800,1746204640123,-855.34,0.00019759,2]
[359637801,1746204640133,-450.0,0.00019759,2]
[359637802,1746204640143,-450.0,0.00019759,2]
[359637803,1746204640153,-450.0,0.00019759,2]
[359637804,1746204640161,-450.0,0.00019759,2]
[359637805,1746204640171,-450.0,0.00019759,2]
[359637806,1746204640180,-450.0,0.00019759,2]
[359637807,1746204640190,-450.0,0.00019759,2]
[359637808,1746204640200,-450.0,0.00019759,2]
[359637809,1746204640209,-450.0,0.00019759,2]
[359637810,1746204640218,-450.0,0.00019759,2]
[359637811,1746204640228,-450.0,0.00019759,2]
[359637812,1746204640238,-450.0,0.00019759,2]
[359637813,1746204640248,-450.0,0.00019759,2]
[359637814,1746204640260,-450.0,0.00019759,2]
[359637815,1746204640271,-450.0,0.00019759,2]
[359637816,1746204640280,-450.0,0.00019759,2]
[359637817,1746204640290,-450.0,0.00019759,2]
[359637818,1746204640300,-1208.76,0.00019759,2]
[359637819,1746204640309,-450.0,0.00019759,2]
[359637820,1746204640319,-450.0,0.00019759,2]
[359637821,1746204640329,-410.90400135,0.00019759,2]
[359637822,1746204640340,-568.79,0.00019759,2]
[359637823,1746204640349,-953.12,0.00019759,2]
[359637824,1746204640359,-450.0,0.00019759,2]
[359637825,1746204640369,-450.0,0.00019759,2]
[359637826,1746204640378,-652.65,0.00019759,2]
[359637827,1746204640388,-522.96,0.00019759,2]
[359637828,1746204640397,-450.0,0.00019759,2]
[359637829,1746204640408,-562.31,0.00019759,2]
[359637830,1746204640417,-450.0,0.00019759,2]
[359637831,1746204640426,-597.64,0.00019759,2]
[359637832,1746204640436,-450.0,0.00019759,2]
[359637833,1746204640446,-450.0,0.00019759,2]
[359637834,1746204640456,-450.0,0.00019759,2]
[359637835,1746204640466,-450.0,0.00019759,2]
[359637836,1746204640475,-450.0,0.00019759,2]
[359637837,1746204640485,-609.97,0.00019759,2]
[359637838,1746204640494,-450.0,0.00019759,2]
[359637839,1746204640504,-450.0,0.00019759,2]
[359637840,1746204640514,-550.75,0.00019759,2]
[359637841,1746204640524,-450.0,0.00019759,2]
[359637842,1746204640533,-450.0,0.00019759,2]
[359637843,1746204640543,-450.0,0.00019759,2]
[359637844,1746204640556,-450.0,0.00019759,2]
[359637845,1746204640567,-450.0,0.00019759,2]
[359637846,1746204640579,-450.0,0.00019759,2]
[359637847,1746204640590,-450.0,0.00019759,2]
[359637848,1746204640599,-450.0,0.00019759,2]
[359637849,1746204640609,-452.77,0.00019759,2]
[359637850,1746204640618,-450.0,0.00019759,2]
[359637851,1746204640629,-544.03,0.00019759,2]
[359637852,1746204640639,-450.0,0.00019759,2]
[359637853,1746204640702,-450.0,0.00019759,2]
[359637854,1746204640712,-450.0,0.00019759,2]
[359637855,1746204640721,-450.0,0.00019759,2]
[359637856,1746204640730,-450.0,0.00019759,2]
[359637857,1746204640739,-450.0,0.00019759,2]
[359637858,1746204640749,-707.3,0.00019759,2]
[359637859,1746204640758,-1320.18,0.00019759,2]
[359637860,1746204640768,-450.0,0.00019759,2]
[359637861,1746204640777,-2295.85,0.00019759,2]
[359637862,1746204640786,-450.0,0.00019759,2]
[359637863,1746204640796,-450.0,0.00019759,2]
[359637864,1746204640804,-561.64,0.00019759,2]
[359637865,1746204640814,-450.0,0.00019759,2]
[359637866,1746204640823,-450.0,0.00019759,2]
[359637867,1746204640833,-450.0,0.00019759,2]
[359637868,1746204640846,-758.11,0.00019759,2]
[359637869,1746204640855,-572.21,0.00019759,2]
[359637870,1746204640864,-450.0,0.00019759,2]
[359637871,1746204640874,-450.0,0.00019759,2]
[359637872,1746204640883,-450.0,0.00019759,2]
[359637873,1746204640892,-453.1,0.00019759,2]
[359637874,1746204640902,-450.0,0.00019759,2]
[359637875,1746204640911,-524.56,0.00019759,2]
[359637876,1746204640920,-7770.09,0.00019759,2]
[359637877,1746204640931,-450.0,0.00019759,2]
[359637878,1746204640940,-1162.02,0.00019759,2]
[359637879,1746204640950,-965.83,0.00019759,2]
[359637880,1746204640960,-450.0,0.00019759,2]
[359637881,1746204640969,-545.24,0.00019759,2]
[359637882,1746204640979,-450.0,0.00019759,2]
[359637883,1746204640988,-521.72,0.00019759,2]
[359637884,1746204640998,-450.0,0.00019759,2]
[359637885,1746204641007,-205.27281233,0.00019759,2]
[359637886,1746204641017,-128522.3,0.00019759,2]
[359637887,1746204641026,-450.0,0.00019759,2]
[359637888,1746204641036,-652.58,0.00019759,2]
[359637889,1746204641045,-578.58,0.00019759,2]
[359637890,1746204641055,-678.11,0.00019759,2]
[359637891,1746204641064,-450.0,0.00019759,2]
[359637892,1746204641075,-819.73,0.00019759,2]
[359637893,1746204641084,-513.72,0.00019759,2]
[359637894,1746204641093,-2575.66,0.00019759,2]
[359637895,1746204641103,-592.19,0.00019759,2]
[359637896,1746204641112,-450.0,0.00019759,2]
[359637897,1746204641121,-450.0,0.00019759,2]
[359637898,1746204641131,-530.22,0.00019759,2]
[359637899,1746204641140,-663.7,0.00019759,2]
[359637900,1746204641149,-450.0,0.00019759,2]
[359637901,1746204641159,-472.59,0.00019759,2]
[359637902,1746204641168,-520.3,0.00019759,2]
[359637903,1746204641177,-450.0,0.00019759,2]
[359637904,1746204641187,-3813.12,0.00019759,2]
[359637905,1746204641197,-450.0,0.00019759,2]
[359637906,1746204641206,-450.0,0.0001976,2]
[359637907,1746204641216,-450.0,0.0001976,2]
[359637908,1746204641225,-450.0,0.0001976,2]
[359637909,1746204641234,-450.0,0.0001976,2]
[359637910,1746204641244,-450.0,0.0001976,2]
[359637911,1746204641253,-450.0,0.0001976,2]
[359637912,1746204641263,-450.0,0.0001976,2]
[359637913,1746204641272,-365.73491122,0.0001976,2]
[359637914,1746204641281,-450.0,0.0001976,2]
[359637915,1746204641291,-625.43,0.0001976,2]
[359637916,1746204641300,-450.0,0.0001976,2]
[359637917,1746204641310,-490.69,0.0001976,2]
[359637918,1746204641319,-450.0,0.0001976,2]
[359637919,1746204641329,-450.0,0.0001976,2]
[359637920,1746204641338,-578.14,0.0001976,2]
[359637921,1746204641348,-450.0,0.0001976,2]
[359637922,1746204641357,-450.0,0.0001976,2]
[359637923,1746204641367,-450.0,0.0001976,2]
[359637924,1746204641376,-567.02,0.0001976,2]
[359637925,1746204641386,-450.0,0.0001976,2]
[359637926,1746204641396,-763.86,0.0001976,2]
[359637927,1746204641405,-450.0,0.0001976,2]
[359637928,1746204641414,-450.0,0.0001976,2]
[359637929,1746204641424,-450.0,0.0001976,2]
[359637930,1746204641434,-450.0,0.0001976,2]
[359637931,1746204641443,-450.0,0.0001976,2]
[359637932,1746204641453,-450.0,0.0001976,2]
[359637933,1746204641462,-450.0,0.0001976,2]
[359637934,1746204641472,-450.0,0.0001976,2]
[359637935,1746204641482,-450.0,0.0001976,2]
[359637936,1746204641491,-523.89,0.0001976,2]
[359637937,1746204641500,-450.0,0.0001976,2]
[359637938,1746204641510,-450.0,0.0001976,2]
[359637939,1746204641520,-450.0,0.0001976,2]
[359637940,1746204641529,-608.19,0.0001976,2]
[359637941,1746204641539,-450.0,0.0001976,2]
[359637942,1746204641551,-450.0,0.0001976,2]
[359637943,1746204641563,-450.0,0.0001976,2]
[359637944,1746204641574,-450.0,0.0001976,2]
[359637945,1746204641586,-508.61,0.0001976,2]
[359637946,1746204641596,-450.0,0.0001976,2]
[359637947,1746204641605,-450.0,0.0001976,2]
[359637948,1746204641615,-347.45318813,0.0001976,2]
[359637949,1746204641623,-450.0,0.0001976,2]
[359637950,1746204641633,-490.88,0.0001976,2]
[359637951,1746204641643,-450.0,0.0001976,2]
[359637952,1746204641652,-450.0,0.0001976,2]
[359637953,1746204641661,-450.0,0.0001976,2]
[359637954,1746204641670,-450.0,0.0001976,2]
[359637955,1746204641680,-1767.47,0.0001976,2]
[359637956,1746204641689,-837.22,0.0001976,2]
[359637957,1746204641699,-685.1,0.0001976,2]
[359637958,1746204641708,-450.0,0.0001976,2]
[359637959,1746204641717,-492.67,0.0001976,2]
[359637960,1746204641726,-450.0,0.0001976,2]
[359637961,1746204641735,-282.44482249,0.0001976,2]
[359637962,1746204641745,-450.0,0.0001976,2]
[359637963,1746204641754,-450.0,0.0001976,2]
[359637964,1746204641763,-450.0,0.0001976,2]
[359637965,1746204641772,-450.0,0.0001976,2]
[359637966,1746204641781,-450.0,0.0001976,2]
[359637967,1746204641790,-450.0,0.0001976,2]
[359637968,1746204641801,-490.38,0.0001976,2]
[359637969,1746204641810,-746.24,0.0001976,2]
[359637970,1746204641819,-185.97104946,0.0001976,2]
[359637971,1746204641828,-459.88,0.0001976,2]
[359637972,1746204641837,-450.0,0.0001976,2]
[359637973,1746204641846,-450.0,0.0001976,2]
[359637974,1746204641855,-450.0,0.0001976,2]
[359637975,1746204641864,-450.0,0.0001976,2]
[359637976,1746204641873,-226.52449439,0.0001976,2]
[359637977,1746204641882,-450.0,0.0001976,2]
[359637978,1746204641890,-450.0,0.0001976,2]
[359637979,1746204641899,-450.0,0.0001976,2]
[359637980,1746204641908,-450.0,0.0001976,2]
[359637981,1746204641918,-450.0,0.0001976,2]
[359637982,1746204641927,-450.0,0.0001976,2]
[359637983,1746204641939,-750.15,0.0001976,2]
[359637984,1746204641949,-450.0,0.0001976,2]
[359637985,1746204641958,-450.0,0.0001976,2]
[359637986,1746204641966,-912.12,0.0001976,2]
[359637987,1746204641976,-450.0,0.0001976,2]
[359637988,1746204641984,-450.0,0.0001976,2]
[359637989,1746204641993,-450.0,0.0001976,2]
[359637990,1746204642003,-450.0,0.0001976,2]
[359637991,1746204642012,-492.45,0.0001976,2]
[359637992,1746204642020,-450.0,0.0001976,2]
[359637993,1746204642029,-450.0,0.0001976,2]
[359637994,1746204642038,-450.0,0.0001976,2]
[359637995,1746204642047,-597.29392894,0.0001976,2]
[359637996,1746204642056,-506.81,0.0001976,2]
[359637997,1746204642065,-926.79,0.0001976,2]
[359637998,1746204642074,-575.7,0.0001976,2]
[359637999,1746204642083,-450.0,0.0001976,2]
[359638000,1746204642092,-450.0,0.0001976,2]
[359638001,1746204642101,-450.0,0.0001976,2]
[359638002,1746204642110,-450.0,0.0001976,2]
[359638003,1746204642119,-450.0,0.0001976,2]
[359638004,1746204642129,-486.83,0.0001976,2]
[359638005,1746204642138,-652.85,0.0001976,2]
[359638006,1746204642147,-530.96,0.0001976,2]
[359638007,1746204642156,-450.0,0.0001976,2]
[359638008,1746204642165,-450.0,0.0001976,2]
[359638009,1746204642175,-450.0,0.0001976,2]
[359638010,1746204642184,-450.0,0.0001976,2]
[359638011,1746204642193,-450.0,0.0001976,2]
[359638012,1746204642202,-450.0,0.0001976,2]
[359638013,1746204642211,-1191.95,0.0001976,2]
[359638014,1746204642220,-450.0,0.0001976,2]
[359638015,1746204642229,-678.4,0.0001976,2]
[359638016,1746204642238,-450.0,0.0001976,2]
[359638018,1746204642247,-450.0,0.0001976,2]
[359638020,1746204642257,-450.0,0.0001976,2]
[359638022,1746204642266,-450.0,0.0001976,2]
[359638024,1746204642276,-548.63632128,0.0001976,2]
[359638025,1746204642284,-450.0,0.0001976,2]
[359638026,1746204642293,-300.0,0.0001976,2]
[359638028,1746204642302,-450.0,0.0001976,2]
[359638029,1746204642310,-450.0,0.0001976,2]
[359638031,1746204642320,-1227.98,0.0001976,2]
[359638033,1746204642329,-576.71,0.0001976,2]
[359638035,1746204642339,-450.0,0.0001976,2]
[359638036,1746204642348,-450.0,0.0001976,2]
[359638037,1746204642357,-726.11,0.0001976,2]
[359638038,1746204642366,-450.0,0.0001976,2]
[359638039,1746204642375,-951.64,0.0001976,2]
[359638040,1746204642384,-450.0,0.0001976,2]
[359638041,1746204642393,-450.0,0.0001976,2]
[359638042,1746204642403,-224.84445446,0.0001976,2]
[359638043,1746204642412,-450.0,0.0001976,2]
[359638044,1746204642422,-450.0,0.0001976,2]
[359638045,1746204642431,-450.0,0.0001976,2]
[359638046,1746204642440,-482.41234061,0.0001976,2]
[359638048,1746204642451,-450.0,0.0001976,2]
[359638049,1746204642461,-656.84,0.0001976,2]
[359638051,1746204642470,-450.0,0.0001976,2]
[359638052,1746204642480,-450.0,0.0001976,2]
[359638053,1746204642489,-450.0,0.0001976,2]
[359638054,1746204642498,-671.42,0.0001976,2]
[359638055,1746204642508,-450.0,0.0001976,2]
[359638056,1746204642517,-450.0,0.0001976,2]
[359638058,1746204642526,-488.54320447,0.0001976,2]
[359638059,1746204642535,-450.0,0.0001976,2]
[359638060,1746204642548,-450.0,0.0001976,2]
[359638061,1746204642558,-450.0,0.0001976,2]
[359638062,1746204642567,-450.0,0.0001976,2]
[359638063,1746204642577,-575.28,0.0001976,2]
[359638064,1746204642586,-450.0,0.0001976,2]
[359638065,1746204642596,-450.0,0.0001976,2]
[359638066,1746204642605,-450.0,0.0001976,2]
[359638067,1746204642614,-450.0,0.0001976,2]
[359638068,1746204642625,-833.02,0.0001976,2]
[359638069,1746204642635,-450.0,0.0001976,2]
[359638070,1746204642644,-450.0,0.0001976,2]
[359638071,1746204642653,-450.0,0.0001976,2]
[359638072,1746204642662,-2767.13,0.0001976,2]
[359638073,1746204642671,-450.0,0.0001976,2]
[359638074,1746204642680,-450.0,0.0001976,2]
[359638075,1746204642689,-450.0,0.0001976,2]
[359638076,1746204642700,-637.27,0.0001976,2]
[359638077,1746204642709,-450.0,0.0001976,2]
[359638078,1746204642718,-589.72,0.0001976,2]
[359638079,1746204642728,-450.11,0.0001976,2]
[359638080,1746204642738,-450.0,0.0001976,2]
[359638081,1746204642748,-524.59,0.0001976,2]
[359638082,1746204642757,-450.0,0.0001976,2]
[359638083,1746204642767,-450.0,0.0001976,2]
[359638084,1746204642775,-634.97,0.0001976,2]
[359638085,1746204642785,-1198.57,0.0001976,2]
[359638086,1746204642794,-450.0,0.0001976,2]
[359638087,1746204642803,-450.0,0.0001976,2]
[359638088,1746204642812,-450.0,0.0001976,2]
[359638089,1746204642821,-450.0,0.0001976,2]
[359638090,1746204642832,-450.0,0.0001976,2]
[359638091,1746204642848,-450.0,0.0001976,2]
[359638092,1746204642857,-450.0,0.0001976,2]
[359638093,1746204642866,-450.0,0.0001976,2]
[359638094,1746204642875,-350.41375353,0.0001976,2]
[359638095,1746204642884,-450.0,0.0001976,2]
[359638096,1746204642894,-800.98,0.0001976,2]
[359638097,1746204642903,-1297.21,0.0001976,2]
[359638098,1746204642912,-450.0,0.0001976,2]
[359638099,1746204642921,-475.09,0.0001976,2]
[359638100,1746204642931,-450.0,0.0001976,2]
[359638101,1746204642940,-683.78,0.0001976,2]
[359638102,1746204642950,-450.0,0.0001976,2]
[359638103,1746204642959,-793.18,0.0001976,2]
[359638104,1746204642968,-1992.39,0.0001976,2]
[359638105,1746204642978,-391.16393632,0.0001976,2]
[359638106,1746204642987,-642.76,0.0001976,2]
[359638107,1746204642995,-783.01,0.0001976,2]
[359638108,1746204643005,-451.13,0.0001976,2]
[359638109,1746204643014,-934.11,0.0001976,2]
[359638110,1746204643023,-450.0,0.0001976,2]
[359638111,1746204643033,-656.61,0.0001976,2]
[359638112,1746204643042,-756.35,0.0001976,2]
[359638113,1746204643052,-450.0,0.0001976,2]
[359638114,1746204643061,-700.15,0.0001976,2]
[359638116,1746204643070,-450.0,0.0001976,2]
[359638119,1746204643079,-450.0,0.0001976,2]
[359638121,1746204643089,-450.0,0.0001976,2]
[359638123,1746204643097,-525.24,0.0001976,2]
[359638125,1746204643106,-450.0,0.0001976,2]
[359638127,1746204643116,-952.25,0.0001976,2]
[359638129,1746204643125,-847.7,0.0001976,2]
[359638131,1746204643134,-450.0,0.0001976,2]
[359638133,1746204643143,-473.06,0.0001976,2]
[359638135,1746204643152,-1072.62,0.0001976,2]
[359638137,1746204643161,-1236.88,0.0001976,2]
[359638139,1746204643170,-450.0,0.0001976,2]
[359638141,1746204643180,-450.0,0.0001976,2]
[359638143,1746204643189,-450.0,0.0001976,2]
[359638144,1746204643199,-4870.9,0.0001976,2]
[359638145,1746204643208,-450.0,0.0001976,2]
[359638146,1746204643218,-1845.3,0.0001976,2]
[359638147,1746204643227,-450.0,0.0001976,2]
[359638148,1746204643236,-5617.15,0.0001976,2]
[359638149,1746204643246,-450.0,0.0001976,2]
[359638150,1746204643255,-667.15,0.0001976,2]
[359638151,1746204643264,-450.0,0.0001976,2]
[359638152,1746204643273,-4729.4,0.0001976,2]
[359638153,1746204643283,-560.38,0.0001976,2]
[359638154,1746204643292,-624.5,0.0001976,2]
[359638155,1746204643301,-450.0,0.0001976,2]
[359638156,1746204643311,-568.39,0.0001976,2]
[359638157,1746204643320,-450.0,0.0001976,2]
[359638158,1746204643329,-1037.2,0.0001976,2]
[359638159,1746204643338,-5322.86,0.0001976,2]
[359638160,1746204643347,-450.0,0.0001976,2]
[359638161,1746204643357,-450.0,0.0001976,2]
[359638162,1746204643365,-105269.13,0.0001976,2]
[359638163,1746204643375,-1277.58,0.0001976,2]
[359638164,1746204643384,-450.0,0.0001976,2]
[359638165,1746204643393,-497.08,0.0001976,2]
[359638166,1746204643402,-977.91,0.0001976,2]
[359638167,1746204643412,-6089.91,0.0001976,2]
[359638168,1746204643421,-525.34,0.0001976,2]
[359638169,1746204643430,-618.89,0.0001976,2]
[359638170,1746204643439,-455.29,0.0001976,2]
[359638171,1746204643450,-32893.23,0.0001976,2]
[359638172,1746204643459,-1752.66,0.0001976,2]
[359638173,1746204643468,-450.0,0.0001976,2]
[359638174,1746204643477,-2116.29,0.0001976,2]
[359638175,1746204643486,-555.26,0.0001976,2]
[359638176,1746204643496,-711.29,0.0001976,2]
[359638177,1746204643505,-450.0,0.0001976,2]
[359638178,1746204643515,-17843.13,0.0001976,2]
[359638179,1746204643524,-450.0,0.0001976,2]
[359638180,1746204643533,-450.0,0.0001976,2]
[359638181,1746204643543,-1142.83,0.0001976,2]
[359638182,1746204643555,-450.0,0.0001976,2]
[359638183,1746204643564,-450.0,0.0001976,2]
[359638184,1746204643574,-450.0,0.0001976,2]
[359638185,1746204643583,-450.0,0.0001976,2]
[359638186,1746204643594,-480.38,0.0001976,2]
[359638187,1746204643604,-832.02,0.0001976,2]
[359638188,1746204643614,-450.0,0.00019761,2]
[359638189,1746204643624,-450.0,0.00019761,2]
[359638190,1746204643634,-450.0,0.00019761,2]
[359638191,1746204643643,-2733.11,0.00019761,2]
[359638192,1746204643652,-450.0,0.00019761,2]
[359638193,1746204643661,-2495.97,0.00019761,2]
[359638194,1746204643671,-450.0,0.00019761,2]
[359638195,1746204643680,-450.0,0.00019761,2]
[359638196,1746204643689,-500.0,0.00019761,2]
[359638197,1746204643700,-500.0,0.00019761,2]
[359638198,1746204643709,-450.0,0.00019761,2]
[359638199,1746204643718,-450.0,0.00019761,2]
[359638200,1746204643727,-821.0,0.00019761,2]
[359638201,1746204643736,-468.34,0.00019761,2]
[359638202,1746204643745,-811.47,0.00019761,2]
[359638203,1746204643755,-623.27,0.00019761,2]
[359638204,1746204643764,-289.36857801,0.00019762,2]
[359638205,1746204643773,-2332.85062273,0.00019767,2]
[359638206,1746204643782,-150.0,0.00019771,4]
[359638207,1746204643791,-501.17158983,0.00019773,2]
[359638208,1746204643801,-185.86498536,0.00019773,2]
[359638209,1746204643810,-505.12152298,0.00019773,2]
[359638210,1746204643819,-162.40954813,0.00019773,2]
[359638211,1746204643831,-501.47327578,0.00019773,2]
[359638212,1746204643840,-165.99958587,0.00019773,2]
[359638213,1746204643854,-500.0,0.00019773,2]
[359638214,1746204643863,-500.0,0.00019773,2]
[359638215,1746204643873,-500.0,0.00019773,2]
[359638216,1746204643882,-368.87036061,0.00019773,2]
[359638217,1746204643891,-500.0,0.00019773,2]
[359638218,1746204643901,-500.0,0.00019773,2]
[359638219,1746204643910,-500.4284128,0.00019773,2]
[359638220,1746204643919,-500.0,0.00019773,2]
[359638221,1746204643929,-589.98642904,0.00019775,2]
[359638222,1746204643938,-2332.85062273,0.00019793,2]
[359638223,1746204643948,-289.36857801,0.00019797,2]
[359638224,1746204643957,-1100.3275435,0.00019799,2]
[359638225,1746204643967,-150.0,0.000198,4]
[359638226,1746204643976,-451.39,0.000198,2]
[359638227,1746204643985,-162.21,0.000198,2]
[359638228,1746204643993,-151.93,0.000198,2]
[359638229,1746204644002,-150.86,0.000198,2]
[359638230,1746204644011,-825.21,0.000198,2]
[359638231,1746204644020,-888.62,0.000198,2]
[359638232,1746204644029,-451.39,0.000198,2]
[359638233,1746204644039,-351.92,0.000198,2]
[359638234,1746204644047,-451.39,0.000198,2]
[359638235,1746204644057,-150.0,0.000198,2]
[359638236,1746204644066,-451.39,0.000198,2]
[359638237,1746204644075,-467.99,0.000198,2]
[359638238,1746204644084,-703.84,0.000198,2]
[359638239,1746204644093,-150.0,0.000198,2]
[359638240,1746204644101,-451.39,0.000198,2]
[359638241,1746204644110,-150.0,0.000198,2]
[359638242,1746204644119,-451.39,0.000198,2]
[359638243,1746204644129,-801.53,0.000198,2]
[359638244,1746204644138,-300.0,0.000198,2]
[359638245,1746204644147,-150.0,0.000198,2]
[359638246,1746204644156,-911.86,0.000198,2]
[359638247,1746204644165,-162.21,0.000198,2]
[359638248,1746204644174,-168.42863542,0.000198,2]
[359638249,1746204644183,-2332.85062273,0.0001982,2]
[359638250,1746204644194,-959.45932213,0.00019824,2]
[359638251,1746204644203,-150.0,0.00019829,4]
[359638252,1746204644212,-12500.0,0.0001983,2]
[359638253,1746204644221,-289.36857801,0.00019831,2]
[359638254,1746204644231,-168.42863539,0.00019833,2]
[359638255,1746204644240,-12500.0,0.00019838,2]
[359638256,1746204644250,-2000.0,0.00019839,2]
[359638257,1746204644259,-200.0,0.00019839,2]
[359638258,1746204644268,-500.0,0.0001984,2]
[359638259,1746204644278,-2000.0,0.0001984,2]
[359638260,1746204644287,-200.0,0.0001984,2]
[359638261,1746204644297,-2332.85062273,0.00019847,2]
[359638262,1746204644307,-12500.0,0.00019847,2]
[359638263,1746204644317,-12500.0,0.00019856,2]
[359638264,1746204644326,-150.0,0.00019857,4]
[359638265,1746204644336,-959.45932213,0.00019862,2]
[359638266,1746204644345,-507.0,0.00019863,2]
[359638267,1746204644355,-12500.0,0.00019865,2]
[359638268,1746204644364,-289.36857801,0.00019866,2]
[359638269,1746204644373,-168.42863539,0.00019867,2]
[359638270,1746204644383,-2332.85062273,0.00019873,2]
[359638271,1746204644392,-12500.0,0.00019874,2]
[359638272,1746204644402,-500.0,0.00019879,2]
[359638273,1746204644411,-12500.0,0.00019882,2]
[359638274,1746204644420,-150.0,0.00019886,4]
[359638275,1746204644430,-190.15738304,0.00019886,2]
[359638276,1746204644439,-589.98642904,0.0001989,2]
[359638277,1746204644449,-12500.0,0.00019891,2]
[359638278,1746204644458,-2743.91594593,0.000199,2]
[359638279,1746204644468,-12500.0,0.000199,2]
[359638280,1746204644478,-940.19247425,0.000199,2]
[359638281,1746204644487,-190.15738303,0.000199,2]
[359638282,1746204644497,-959.45932213,0.000199,2]
[359638283,1746204644507,-2332.85062273,0.000199,2]
[359638284,1746204644516,-289.36857801,0.000199,2]
[359638285,1746204644526,-1347.07182384,0.000199,2]
[359638286,1746204644535,-165.23990396,0.000199,2]
[359638287,1746204644547,-12500.0,0.000199,2]
[359638288,1746204644557,-12212.59976485,0.000199,2]
[359638289,1746204644567,-347.31953854,0.000199,2]
[359638290,1746204644576,-150.0,0.00019914,4]
[359638291,1746204644587,-2440.559,0.00019915,2]
[359638292,1746204644597,-167.072,0.00019915,2]
[359638293,1746204644606,-150.0,0.00019943,4]
[359638294,1746204644615,-151.0,0.00019943,2]
[359638295,1746204644626,-207.4,0.00019953,2]
[359638296,1746204644636,-151.0,0.00019954,2]
[359638297,1746204644646,-151.0,0.00019954,2]
[359638298,1746204644655,-668.65185757,0.00019954,2]
[359638299,1746204644665,-150.0,0.00019971,4]
[359638300,1746204644674,-4021.0,0.00019973,2]
[359638301,1746204644683,-500.0,0.00019973,2]
[359638302,1746204644695,-501.74607688,0.00019973,2]
[359638303,1746204644825,-500.0,0.00019973,2]
[359638304,1746204644837,-500.0,0.00019973,2]
[359638305,1746204644847,-606.40594085,0.00019973,2]
[359638306,1746204644857,-309.0,0.00019973,2]
[359638307,1746204644865,-15522.0,0.00019973,2]
[359638308,1746204644875,-500.0,0.00019973,2]
[359638309,1746204644884,-500.0,0.00019973,2]
[359638310,1746204644893,-501.66333751,0.00019973,2]
[359638311,1746204644904,-500.0,0.00019973,2]